bitfinex-derivatives/quotes_SOLF0:USTF0_20240816
["timestamp","ask_amount","ask_price","bid_price","bid_amount"]
[1723827457523,3.6143,138.31,138.26,3.6154]
[1723827457823,3.6143,138.31,138.22,5.34]
[1723827457824,8.9539,138.32,138.27,57.1878]
[1723827458020,3.6139,138.32,138.27,57.2391156]
[1723827458224,3.56435969,138.33,138.27,53.6240156]
[1723827458526,57.52,138.35,138.27,1.4440156]
[1723827458819,52.18,138.31,138.27,0.0513156]
[1723827459217,5.34,138.3,138.27,0.0513156]
[1723827461727,3.6148,138.29,138.27,0.0513156]
[1723827462722,3.53015266,138.28,138.27,0.0513156]
[1723827462932,3.6148,138.29,138.27,0.0513156]
[1723827463318,5.34,138.3,138.27,0.0513156]
[1723827463525,5.34,138.33,138.27,0.0513156]
[1723827463723,8.9539,138.33,138.27,55.8465156]
[1723827463928,8.9539,138.33,138.28,1.3742]
[1723827464130,5.34,138.33,138.28,1.3742]
[1723827464427,5.34,138.33,138.28,4.989]
[1723827464632,5.34,138.33,138.28,1.3742]
[1723827464834,8.9538,138.33,138.28,1.3742]
[1723827465635,3.6139,138.32,138.28,1.3742]
[1723827465829,5.34,138.33,138.28,4.9891]
[1723827466027,5.34,138.33,138.28,1.3742]
[1723827466531,3.6139,138.32,138.28,1.3742]
[1723827468821,3.6142,138.31,138.28,1.3742]
[1723827469329,3.6149,138.28,138.27,0.0513156]
[1723827469531,7.15318435,138.28,138.27,0.0513156]
[1723827469933,7.15318435,138.28,138.22,1.2969]
[1723827469934,3.616,138.24,138.22,1.2969]
[1723827470137,8.93828435,138.28,138.22,1.2969]
[1723827470446,5.4,138.28,138.22,1.2969]
[1723827470648,8.98937149,138.28,138.22,1.2969]
[1723827471844,8.98937149,138.28,138.22,4.9133]
[1723827472140,0.04947675,138.26,138.24,0.05404803]
[1723827473142,3.66507675,138.26,138.24,0.05404803]
[1723827474952,0.04947675,138.26,138.24,0.05404803]
[1723827477051,3.66497675,138.26,138.24,0.05404803]
[1723827477954,0.04947675,138.26,138.24,0.05404803]
[1723827479654,0.04947675,138.26,138.09,69.59622199]
[1723827479837,1.35257675,138.26,138.16,56.0359]
[1723827480038,3.6169,138.21,138.16,59.6538]
[1723827480351,8.59657675,138.26,138.18,52.07]
[1723827480540,7.29347675,138.26,138.2,52.07]
[1723827480845,0.04947675,138.26,138.23,52.07]
[1723827481748,3.66507675,138.26,138.23,52.07]
[1723827481941,9.03060513,138.28,138.23,52.07]
[1723827482341,3.63060513,138.28,138.23,52.07]
[1723827482639,5.4,138.29,138.22,0.049543]
[1723827483046,3.6157,138.26,138.22,0.049543]
[1723827483351,3.60845555,138.26,138.22,0.049543]
[1723827483552,3.6157,138.25,138.22,0.049543]
[1723827484050,3.616,138.24,138.22,0.049543]
[1723827484254,3.60845555,138.26,138.22,0.049543]
[1723827484656,3.6159,138.25,138.22,0.049543]
[1723827485358,0.05397296,138.26,138.23,52.07]
[1723827486358,0.05397296,138.26,138.22,0.049543]
[1723827486359,0.05397296,138.26,138.25,52.07]
[1723827486744,0.05397296,138.26,138.25,55.6857]
[1723827486949,0.05397296,138.26,138.25,52.07]
[1723827487343,3.6145,138.3,138.25,55.6857]
[1723827487547,2.6667,138.34,138.23,2.661]
[1723827487548,2.6667,138.34,138.27,52.07]
[1723827487754,5.4,138.33,138.27,52.07]
[1723827488453,3.6144,138.3,138.27,52.07]
[1723827488859,3.6142,138.31,138.27,52.07]
[1723827489156,3.66052261,138.31,138.27,52.07]
[1723827489357,3.66052261,138.31,138.27,52.12228443]
[1723827490254,0.04632261,138.31,138.27,52.12228443]
[1723827490753,0.04632261,138.31,138.27,0.05228443]
[1723827491955,3.6149,138.28,138.27,0.05228443]
[1723827492152,3.6149,138.28,138.21,41.64]
[1723827492153,9.07817562,138.28,138.21,41.64]
[1723827492349,5.4,138.28,138.21,41.64]
[1723827492758,9.01091177,138.28,138.21,41.64]
[1723827493054,12.62601177,138.28,138.23,41.64]
[1723827493362,9.01091177,138.28,138.23,41.64]
[1723827493553,12.62601177,138.28,138.23,41.64]
[1723827493761,0.05127898,138.26,138.25,41.64]
[1723827495152,0.05127898,138.26,138.23,41.68894855]
[1723827496769,0.05127898,138.26,138.23,0.04894855]
[1723827497561,3.6159,138.25,138.23,0.04894855]
[1723827497753,0.05127898,138.26,138.23,0.04894855]
[1723827498365,3.66687898,138.26,138.23,0.04894855]
[1723827498965,0.05127898,138.26,138.23,41.68894855]
[1723827501566,0.05127898,138.26,138.23,0.04894855]
[1723827503176,3.66677898,138.26,138.23,0.04894855]
[1723827503469,0.05127898,138.26,138.23,0.04894855]
[1723827504469,3.616,138.24,138.23,0.04894855]
[1723827505959,3.6159,138.25,138.23,0.04894855]
[1723827506163,0.05127898,138.26,138.23,41.68894855]
[1723827508459,0.05127898,138.26,138.23,0.04894855]
[1723827511373,3.6157,138.25,138.23,0.04894855]
[1723827512273,3.66687898,138.26,138.23,0.04894855]
[1723827512975,0.05127898,138.26,138.24,41.64]
[1723827513175,0.05127898,138.26,138.24,46.6562]
[1723827513380,3.6149,138.29,138.24,46.6562]
[1723827513675,5.3,138.3,138.26,41.64]
[1723827513870,3.6147,138.29,138.26,41.64]
[1723827514470,3.6147,138.29,138.26,41.69441124]
[1723827514680,3.67022082,138.29,138.26,41.69441124]
[1723827515177,3.6149,138.28,138.26,0.05441124]
[1723827515475,3.62807188,138.28,138.26,0.05441124]
[1723827515778,7.24317188,138.28,138.26,0.05441124]
[1723827516175,3.67032082,138.29,138.26,0.05441124]
[1723827516999,0.05552082,138.29,138.26,0.05441124]
[1723827517884,3.67022082,138.29,138.26,0.05441124]
[1723827518180,0.05552082,138.29,138.26,0.05441124]
[1723827520169,0.05552082,138.29,138.26,41.69441124]
[1723827520582,0.05552082,138.29,138.27,3.6152]
[1723827520769,0.05552082,138.29,138.26,41.69441124]
[1723827523676,0.05552082,138.29,138.26,45.30981124]
[1723827524080,0.05552082,138.29,138.28,41.64]
[1723827524284,3.61209665,138.35,138.28,41.64]
[1723827524473,3.61209665,138.35,138.26,41.69441124]
[1723827524474,5.3,138.35,138.3,41.64]
[1723827524681,3.6135,138.34,138.3,41.64]
[1723827525380,3.6135,138.34,138.31,0.04909222]
[1723827525881,3.6137,138.33,138.31,0.04909222]
[1723827526479,3.6139,138.32,138.31,0.04909222]
[1723827529187,41.64,138.32,138.21,2.7427]
[1723827529378,41.64,138.32,138.22,41.64]
[1723827529579,1.3953,138.31,138.22,41.64]
[1723827529879,3.6153,138.27,138.22,41.64]
[1723827530081,3.65687009,138.26,138.22,41.64]
[1723827530382,0.04712658,138.25,138.23,41.69022108]
[1723827530684,3.68398748,138.27,138.23,41.69022108]
[1723827530886,0.0503168,138.25,138.23,41.69022108]
[1723827531889,0.0503168,138.25,138.23,45.30642108]
[1723827533887,0.0503168,138.25,138.24,3.616]
[1723827534081,5.18,138.3,138.23,41.69022108]
[1723827534282,5.18,138.3,138.27,41.64]
[1723827534886,5.18,138.32,138.27,41.64]
[1723827535080,5.18,138.32,138.27,45.2551]
[1723827535380,5.18,138.33,138.3,41.64]
[1723827535779,5.18,138.33,138.3,41.69063671]
[1723827537086,8.7936,138.33,138.3,0.05063671]
[1723827538390,3.6139,138.32,138.3,0.05063671]
[1723827538593,5.18,138.33,138.3,0.05063671]
[1723827539487,59.68425948,138.39,138.3,0.05063671]
[1723827539685,39.80384452,138.44,138.3,0.05063671]
[1723827539686,7.236,138.45,138.31,8.95152296]
[1723827539995,8.78191346,138.44,138.41,41.64]
[1723827540289,5.18,138.43,138.41,41.64]
[1723827540597,8.8422888,138.43,138.41,41.64]
[1723827540796,5.18,138.43,138.41,41.64]
[1723827541089,5.48,138.42,138.39,13.62314449]
[1723827541288,3.55310704,138.43,138.37,41.64]
[1723827541498,28.92,138.44,138.37,41.64]
[1723827541689,28.92,138.44,138.33,41.64]
[1723827541690,28.92,138.44,138.39,41.64]
[1723827541887,5.48,138.43,138.38,52.01]
[1723827542093,1.3075,138.46,138.39,0.0556503]
[1723827542288,5.48,138.42,138.39,3.6676503]
[1723827542685,4.84383632,138.46,138.39,0.0556503]
[1723827542885,28.92,138.45,138.39,0.0556503]
[1723827543091,34.4,138.45,138.39,0.0556503]
[1723827543801,28.92,138.45,138.39,0.0556503]
[1723827543987,5.48,138.44,138.39,0.0556503]
[1723827544294,32.5306,138.45,138.39,0.0556503]
[1723827544988,28.92,138.45,138.39,0.0556503]
[1723827545188,4.84383632,138.46,138.4,55.6216]
[1723827545497,34.4,138.44,138.4,55.6216]
[1723827545799,1.2757,138.48,138.42,52.01]
[1723827545987,2.6689,138.54,138.45,52.01]
[1723827546192,32.8705,138.54,138.47,55.6198]
[1723827546500,5.48,138.53,138.47,52.01]
[1723827546794,32.8705,138.54,138.5,3.609]
[1723827546795,5.48,138.52,138.5,3.609]
[1723827547288,3.62035143,138.58,138.52,3.6085]
[1723827547596,3.62035143,138.58,138.51,52.01]
[1723827547597,5.48,138.57,138.51,52.01]
[1723827547794,9.16005031,138.57,138.51,52.01]
[1723827548103,9.16005031,138.57,138.49,52.01]
[1723827548487,5.48,138.56,138.52,52.01]
[1723827548994,5.48,138.56,138.49,52.01]
[1723827549393,5.48,138.56,138.53,0.05493739]
[1723827549900,5.48,138.56,138.47,52.01]
[1723827550495,5.48,138.56,138.45,52.01]
[1723827550997,3.6083,138.54,138.47,3.6098]
[1723827551599,0.05178711,138.52,138.49,0.05094515]
[1723827551801,5.48,138.51,138.49,0.05094515]
[1723827552196,5.48,138.51,138.43,52.01]
[1723827552394,1.3652,138.5,138.43,52.01]
[1723827552599,1.3652,138.5,138.41,52.01]
[1723827553004,5.01009352,138.5,138.41,52.01]
[1723827553190,8.61949352,138.5,138.43,3.6109]
[1723827553396,52.01,138.49,138.39,52.01]
[1723827553597,59.246,138.49,138.39,52.01]
[1723827554100,7.236,138.49,138.39,52.01]
[1723827554299,0.04823812,138.47,138.44,0.0533627]
[1723827554501,5.48,138.46,138.44,0.0533627]
[1723827554697,0.04823812,138.47,138.44,0.0533627]
[1723827555395,5.48,138.48,138.44,3.6107]
[1723827555610,5.48,138.48,138.41,52.01]
[1723827555792,0.04687882,138.47,138.44,0.05159687]
[1723827557996,0.04687882,138.47,138.44,3.66229687]
[1723827558204,0.04687882,138.47,138.44,0.05159687]
[1723827560504,0.04687882,138.47,138.46,52.01]
[1723827560898,0.04687882,138.47,138.46,55.6202]
[1723827563300,0.04687882,138.47,138.46,52.01]
[1723827564204,0.04687882,138.47,138.46,55.6202]
[1723827564501,1.3111,138.52,138.46,52.01]
[1723827564724,1.3111,138.52,138.49,52.01]
[1723827565605,4.92,138.52,138.49,52.01]
[1723827565810,1.36305198,138.52,138.49,52.05609381]
[1723827566406,1.36305198,138.52,138.49,0.04609381]
[1723827568309,4.97175198,138.52,138.49,0.04609381]
[1723827568700,1.36305198,138.52,138.49,0.04609381]
[1723827568903,3.609,138.51,138.49,0.04609381]
[1723827569510,7.27477226,138.5,138.49,0.04609381]
[1723827569806,5.48,138.5,138.42,52.01]
[1723827570013,9.04555615,138.5,138.42,52.01]
[1723827570206,3.6097,138.48,138.42,55.621]
[1723827570410,3.6097,138.48,138.39,5.48]
[1723827570411,1.3449,138.49,138.4,52.01]
[1723827570704,1.3508,138.47,138.4,52.01]
[1723827570904,1.3508,138.47,138.38,52.01]
[1723827571115,3.6106,138.45,138.38,52.01]
[1723827571302,5.6,138.44,138.39,3.6119]
[1723827571502,5.6,138.44,138.43,0.05408745]
[1723827571712,9.2108,138.44,138.43,0.05408745]
[1723827571904,5.6,138.44,138.43,0.05408745]
[1723827572213,5.6,138.44,138.39,3.6119]
[1723827572513,9.2109,138.44,138.42,0.04951027]
[1723827573009,3.611,138.43,138.42,0.04951027]
[1723827573310,7.20060198,138.43,138.42,0.04951027]
[1723827573514,8.52360198,138.43,138.42,0.04951027]
[1723827574510,4.91260198,138.43,138.42,0.04951027]
[1723827575109,8.52360198,138.43,138.42,0.04951027]
[1723827575914,4.91260198,138.43,138.34,52.01]
[1723827576721,5.6,138.42,138.34,52.01]
[1723827577319,3.6117,138.41,138.35,3.613]
[1723827577524,0.04563361,138.4,138.37,0.0523602]
[1723827577819,3.65763361,138.4,138.37,0.0523602]
[1723827578219,0.04563361,138.4,138.37,0.0523602]
[1723827579010,3.65763361,138.4,138.37,0.0523602]
[1723827580809,0.04563361,138.4,138.37,0.0523602]
[1723827581422,3.6121,138.39,138.37,0.0523602]
[1723827582125,3.65753361,138.4,138.37,0.0523602]
[1723827584524,3.65753361,138.4,138.37,52.0623602]
[1723827585633,0.04563361,138.4,138.37,0.0523602]
[1723827586418,3.65753361,138.4,138.37,0.0523602]
[1723827586821,0.04563361,138.4,138.37,52.0623602]
[1723827587123,0.04563361,138.4,138.39,52.01]
[1723827587621,0.04563361,138.4,138.39,55.6221]
[1723827589137,1.3508,138.47,138.4,3.6117]
[1723827589321,1.3508,138.47,138.41,52.01]
[1723827589517,5.6,138.46,138.41,52.01]
[1723827590428,5.6,138.46,138.42,0.04590149]
[1723827590429,3.6109,138.44,138.42,0.04590149]
[1723827590732,0.05340067,138.45,138.42,0.04590149]
[1723827591126,3.611,138.43,138.42,0.04590149]
[1723827591328,7.19172918,138.43,138.42,0.04590149]
[1723827594033,3.58072918,138.43,138.42,0.04590149]
[1723827594231,0.05340067,138.45,138.42,0.04590149]
[1723827594630,3.611,138.43,138.42,0.04590149]
[1723827594821,7.26549121,138.43,138.42,0.04590149]
[1723827598331,7.26549121,138.43,138.37,41.62]
[1723827598332,3.6115,138.41,138.37,41.62]
[1723827598528,5.6,138.4,138.37,45.2325]
[1723827599133,9.27111239,138.4,138.37,45.2325]
[1723827599331,9.31819458,138.4,138.37,45.28715403]
[1723827600555,9.31819458,138.4,138.37,41.67465403]
[1723827601138,9.31819458,138.4,138.37,0.05465403]
[1723827601639,1.3508,138.47,138.38,41.62]
[1723827601841,3.59477204,138.47,138.45,41.62]
[1723827602131,3.6104,138.46,138.37,0.05465403]
[1723827602341,47.82197973,138.48,138.39,41.62]
[1723827602728,5.4,138.47,138.41,41.62]
[1723827603227,3.6104,138.46,138.39,41.62]
[1723827603432,5.4,138.47,138.39,41.62]
[1723827603630,3.6112,138.43,138.39,41.62]
[1723827603834,0.05403605,138.45,138.35,0.683]
[1723827604039,0.05403605,138.45,138.41,0.05220276]
[1723827604341,3.6113,138.42,138.41,0.05220276]
[1723827604535,9.0113,138.42,138.41,0.05220276]
[1723827605433,9.0113,138.42,138.37,41.62]
[1723827605642,3.6118,138.41,138.35,3.6131]
[1723827605834,3.60115823,138.41,138.34,41.62]
[1723827606029,6.7866,138.42,138.34,41.62]
[1723827606740,3.6117,138.41,138.35,3.6131]
[1723827607131,3.6117,138.41,138.34,45.2332]
[1723827607132,3.6118,138.4,138.34,45.2332]
[1723827607346,3.6118,138.4,138.34,41.62]
[1723827607536,3.6118,138.4,138.37,0.04819894]
[1723827607839,0.05513493,138.39,138.37,0.04819894]
[1723827609230,0.05513493,138.39,138.34,41.62]
[1723827609231,41.62,138.38,138.23,3.67534639]
[1723827609431,41.62,138.38,138.18,7.2349]
[1723827609432,3.6135,138.34,138.28,45.2348]
[1723827609638,5.4,138.37,138.24,0.7383]
[1723827609936,5.4,138.37,138.26,3.6154]
[1723827609937,41.62,138.34,138.26,3.6154]
[1723827610141,45.19572765,138.34,138.26,3.6154]
[1723827610647,45.19572765,138.34,138.23,41.62]
[1723827610831,45.19572765,138.34,138.25,41.62]
[1723827611037,0.04706062,138.31,138.29,0.05062532]
[1723827611665,3.66136062,138.31,138.29,0.05062532]
[1723827611951,5.4,138.3,138.24,52.04]
[1723827612140,9.09067724,138.3,138.24,52.04]
[1723827612342,9.09067724,138.3,138.2,0.7383]
[1723827612343,9.09067724,138.3,138.22,52.04]
[1723827612749,10.37527724,138.3,138.22,52.04]
[1723827613139,10.37527724,138.3,138.29,0.05276834]
[1723827613334,13.98987724,138.3,138.29,0.05276834]
[1723827613741,10.37527724,138.3,138.29,0.05276834]
[1723827613940,10.37527724,138.3,138.25,3.6156]
[1723827614249,0.05056564,138.27,138.24,52.04]
[1723827615152,0.05056564,138.27,138.21,52.04]
[1723827615543,0.05056564,138.27,138.22,3.6164]
[1723827615850,0.05056564,138.27,138.21,52.04]
[1723827616149,0.05056564,138.27,138.24,0.04598694]
[1723827616547,0.05056564,138.27,138.24,55.70178694]
[1723827617446,0.05056564,138.27,138.24,0.04598694]
[1723827618047,3.66586564,138.27,138.24,0.04598694]
[1723827618548,3.6156,138.26,138.24,0.04598694]
[1723827618843,5.4,138.25,138.24,0.04598694]
[1723827619060,9.0157,138.25,138.24,0.04598694]
[1723827621151,3.6166,138.22,138.17,52.04]
[1723827621347,5.4,138.25,138.15,52.04]
[1723827621543,5.4,138.25,138.15,55.6583]
[1723827621544,53.3912,138.24,138.15,55.6583]
[1723827621742,3.6171,138.2,138.15,55.6583]
[1723827621943,5.4,138.19,138.15,55.6583]
[1723827622140,5.4,138.19,138.16,3.618]
[1723827622347,5.4,138.19,138.15,52.04]
[1723827622744,5.4,138.19,138.16,0.05540051]
[1723827622745,0.05524988,138.18,138.16,0.05540051]
[1723827622946,0.05524988,138.18,138.17,52.04]
[1723827623168,5.4,138.22,138.17,52.04]
[1723827623475,5.4,138.25,138.19,52.04]
[1723827623754,9.0159,138.25,138.2,3.6169]
[1723827624051,5.4,138.25,138.19,52.04]
[1723827624244,9.0157,138.25,138.2,3.6169]
[1723827624555,0.04851555,138.23,138.21,0.05265594]
[1723827625453,3.65717546,138.23,138.21,0.05265594]
[1723827625643,0.04851555,138.23,138.21,0.05265594]
[1723827626052,3.6165,138.22,138.21,0.05265594]
[1723827627051,3.6175,138.18,138.12,55.6589]
[1723827627253,57.13061265,138.23,138.12,52.04]
[1723827627447,3.6175,138.19,138.12,52.04]
[1723827627750,5.4,138.22,138.12,52.04]
[1723827627950,12.636,138.22,138.1,52.8788]
[1723827628149,12.636,138.22,138.11,3.6193]
[1723827628347,52.04,138.18,138.08,52.04]
[1723827628547,3.6187,138.14,138.08,52.04]
[1723827628849,52.04,138.16,138.06,122.26878359]
[1723827629044,3.619,138.13,138.06,122.26878359]
[1723827629248,55.74915984,138.16,138.04,52.8792]
[1723827629249,5.4,138.12,138.04,52.8792]
[1723827629648,5.4,138.12,138.04,56.5002]
[1723827629649,3.6198,138.1,138.04,56.5002]
[1723827629956,5.4,138.12,138.04,52.04]
[1723827630145,5.4,138.12,138.08,0.04872999]
[1723827630443,0.04575146,138.11,138.08,0.04872999]
[1723827630642,0.04575146,138.11,138.08,52.08872999]
[1723827631448,0.04575146,138.11,138.08,55.70872999]
[1723827632559,0.04575146,138.11,138.09,3.6199]
[1723827633359,0.04575146,138.11,138.08,0.04872999]
[1723827635674,3.6199,138.09,138.08,0.04872999]
[1723827636847,7.1736003,138.09,138.08,0.04872999]
[1723827638348,5.48,138.09,138.08,0.04872999]
[1723827638557,1.34465146,138.11,138.08,0.04872999]
[1723827638756,5.48,138.1,138.08,0.04872999]
[1723827639457,9.0998,138.1,138.08,0.04872999]
[1723827639862,5.48,138.1,138.08,0.04872999]
[1723827640160,7.20195305,138.09,138.08,0.04872999]
[1723827640349,5.48,138.09,138.08,0.04872999]
[1723827641362,0.04575146,138.11,138.08,0.04872999]
[1723827642862,3.6198,138.1,138.08,0.04872999]
[1723827643254,0.04575146,138.11,138.08,0.04872999]
[1723827643255,12.7485406,138.09,138.08,0.04872999]
[1723827644353,9.1286406,138.09,138.0,52.04]
[1723827645062,61.1686406,138.09,138.0,52.04]
[1723827645264,1.2946,138.08,137.97,52.9379]
[1723827645454,3.6215,138.03,137.97,0.4502]
[1723827645668,3.6215,138.03,137.95,52.04]
[1723827645669,5.48,138.03,137.95,52.04]
[1723827645859,5.48,138.03,137.94,0.4477]
[1723827646066,5.48,138.03,138.01,0.04886653]
[1723827646067,9.1017,138.03,138.01,0.04886653]
[1723827646264,9.1017,138.03,137.97,3.623]
[1723827646471,0.04869905,138.0,137.97,3.623]
[1723827646772,0.04869905,138.0,137.96,3.6232]
[1723827646964,0.04869905,138.0,137.94,0.4482]
[1723827646965,1.2946,138.08,137.99,52.08565028]
[1723827647167,1.2946,138.08,138.01,52.04]
[1723827647367,3.6486406,138.09,138.01,52.04]
[1723827647665,5.48,138.08,138.01,52.04]
[1723827647858,9.1004,138.08,138.02,3.6215]
[1723827648170,5.48,138.08,138.01,52.04]
[1723827648365,0.04897129,138.06,138.04,0.05108085]
[1723827648564,5.48,138.08,137.99,52.04]
[1723827648765,0.05262155,138.04,138.01,0.05369768]
[1723827649773,0.05262155,138.04,138.01,3.67559768]
[1723827650074,0.05262155,138.04,138.01,0.05369768]
[1723827650474,3.67382155,138.04,138.01,0.05369768]
[1723827650772,5.48,138.03,138.01,0.05369768]
[1723827651276,5.48,138.03,138.01,52.09369768]
[1723827651476,0.05262155,138.04,138.02,3.6215]
[1723827652081,0.05262155,138.04,138.03,3.6215]
[1723827652778,5.48,138.08,138.01,52.04]
[1723827652969,7.27395096,138.09,138.01,52.04]
[1723827653177,5.48,138.08,138.02,3.6217]
[1723827653872,0.0457289,138.06,138.04,0.04996986]
[1723827655974,0.0457289,138.06,138.04,3.67096986]
[1723827656169,0.0457289,138.06,138.04,0.04996986]
[1723827656579,0.0457289,138.06,138.04,3.67116986]
[1723827656772,0.0457289,138.06,138.04,0.04996986]
[1723827659275,0.0457289,138.06,138.04,3.67106986]
[1723827659473,5.48,138.08,138.04,52.08996986]
[1723827659670,5.0,138.13,138.06,52.04]
[1723827659929,5.0,138.13,138.06,55.69243264]
[1723827660277,5.0,138.13,138.08,52.04]
[1723827660577,5.0,138.13,138.06,55.69243264]
[1723827660578,5.0,138.13,138.1,52.04]
[1723827661082,5.0,138.13,138.08,57.48]
[1723827661377,0.04950452,138.12,138.09,0.04971617]
[1723827661874,3.6195,138.11,138.09,0.04971617]
[1723827662071,52.08950452,138.12,138.09,0.04971617]
[1723827662288,3.59026992,138.11,138.09,0.04971617]
[1723827662472,3.6196,138.1,138.09,0.04971617]
[1723827662872,59.25240491,138.1,138.09,0.04971617]
[1723827663184,3.6205,138.07,138.0,5.44]
[1723827663688,5.44,138.08,137.99,52.04]
[1723827664170,9.0602,138.08,138.02,3.6215]
[1723827664578,5.44,138.08,138.03,3.6214]
[1723827664876,5.44,138.08,138.02,0.04775183]
[1723827664877,0.05264422,138.05,138.02,0.04775183]
[1723827666769,3.67374422,138.05,138.02,0.04775183]
[1723827668082,52.09264422,138.05,138.02,0.04775183]
[1723827668276,0.05264422,138.05,138.02,0.04775183]
[1723827668480,5.44,138.04,138.02,0.04775183]
[1723827668677,0.05264422,138.05,138.02,0.04775183]
[1723827669181,3.67364422,138.05,138.02,0.04775183]
[1723827669577,0.05264422,138.05,138.02,0.04775183]
[1723827669974,52.04,138.04,138.02,0.04775183]
[1723827670174,3.6215,138.03,138.02,0.04775183]
[1723827670905,3.6228,137.98,137.92,52.04]
[1723827671080,5.44,138.01,137.92,52.04]
[1723827671280,5.44,138.0,137.92,52.04]
[1723827671689,3.6228,137.98,137.92,55.6643]
[1723827671886,3.6228,137.98,137.92,3.6243]
[1723827672192,5.44,138.0,137.92,3.6243]
[1723827672193,0.05364219,137.96,137.94,0.04835988]
[1723827673386,0.05364219,137.96,137.95,3.6236]
[1723827673586,5.44,138.0,137.94,52.08835988]
[1723827673787,5.44,138.0,137.94,52.04]
[1723827673994,5.44,138.0,137.95,3.6234]
[1723827674291,5.44,138.0,137.94,52.04]
[1723827674590,5.44,138.0,137.89,0.8507]
[1723827674591,3.6232,137.97,137.89,52.8907]
[1723827674779,3.6232,137.97,137.96,0.04784318]
[1723827674985,1.2879,137.99,137.89,52.8907]
[1723827675291,0.04787325,137.98,137.95,0.04561712]
[1723827675485,5.48787325,137.98,137.95,0.04561712]
[1723827676286,3.6232,137.97,137.95,0.04561712]
[1723827676589,5.48787325,137.98,137.95,0.04561712]
[1723827676788,3.6233,137.96,137.95,0.04561712]
[1723827676984,3.6233,137.96,137.88,3.6253]
[1723827676985,57.04,137.96,137.88,3.6253]
[1723827677285,52.04,137.94,137.82,52.04]
[1723827677490,3.6245,137.92,137.86,3.6257]
[1723827677685,5.44,137.93,137.76,0.848]
[1723827677886,52.04,137.89,137.76,0.848]
[1723827678086,5.44,137.88,137.76,52.888]
[1723827678280,5.44,137.87,137.76,52.888]
[1723827678699,5.44,137.87,137.76,56.5165]
[1723827678700,9.15181484,137.87,137.76,56.5165]
[1723827678893,9.15181484,137.87,137.76,52.888]
[1723827679095,3.67335096,137.84,137.81,0.05350189]
[1723827679393,0.04665096,137.84,137.81,0.05350189]
[1723827679780,5.44,137.83,137.81,0.05350189]
[1723827680689,9.0668,137.83,137.81,0.05350189]
[1723827681096,5.44,137.83,137.81,0.05350189]
[1723827681491,6.7444,137.83,137.81,0.05350189]
[1723827682194,3.627,137.82,137.81,0.05350189]
[1723827683497,9.067,137.82,137.81,0.05350189]
[1723827685489,2.81965096,137.84,137.81,0.05350189]
[1723827685693,5.44,137.82,137.81,0.05350189]
[1723827685892,1.45185096,137.84,137.81,0.05350189]
[1723827686194,5.44,137.83,137.81,0.05350189]
[1723827687196,3.627,137.82,137.81,0.05350189]
[1723827687691,9.0668,137.83,137.81,0.05350189]
[1723827687894,5.44,137.83,137.81,0.05350189]
[1723827688291,3.627,137.82,137.81,0.05350189]
[1723827688695,3.6278,137.79,137.72,52.9348]
[1723827688895,5.0,137.77,137.72,0.8948]
[1723827689290,5.0,137.77,137.73,3.6292]
[1723827689502,5.44,137.79,137.72,0.8948]
[1723827689996,3.6279,137.79,137.74,3.6289]
[1723827690704,3.6279,137.79,137.74,3.67497632]
[1723827690905,0.0504902,137.78,137.75,3.6288]
[1723827691102,0.0504902,137.78,137.74,0.04607632]
[1723827691302,0.0504902,137.78,137.74,52.08607632]
[1723827691501,9.2069,137.83,137.78,3.6279]
[1723827691703,14.2069,137.83,137.78,3.6279]
[1723827692394,10.58,137.83,137.8,3.6275]
[1723827692598,5.0,137.83,137.77,3.69842542]
[1723827693006,8.67684558,137.83,137.8,0.05225592]
[1723827693907,5.04994558,137.83,137.8,0.05225592]